fUST/lending_fUST_20240902
["ID","MTS","AMOUNT","RATE_DAILY","PERIOD"]
[336913009,1725241655666,-500.0,0.00024931,2]
[336913010,1725241655690,-500.0,0.00024931,2]
[336913011,1725241655718,-5488.79,0.00024931,2]
[336913012,1725241655740,-501.9595646,0.00024931,2]
[336913013,1725241655762,-771.43,0.00024931,2]
[336913014,1725241655787,-719.13,0.00024931,2]
[336913015,1725241655816,-613.65,0.00024931,2]
[336913016,1725241655837,-775.24,0.00024931,2]
[336913017,1725241655859,-502.72015357,0.00024931,2]
[336913018,1725241655882,-500.0,0.00024931,2]
[336913019,1725241655904,-500.0,0.00024931,2]
[336913020,1725241655926,-1771.12,0.00024931,2]
[336913021,1725241655949,-8793.93,0.00024931,2]
[336913022,1725241655971,-554.23,0.00024931,2]
[336913023,1725241655992,-1144.92,0.00024931,2]
[336913024,1725241656014,-500.0,0.00024931,2]
[336913025,1725241656037,-1413.39,0.00024931,2]
[336913026,1725241656062,-500.0,0.00024931,2]
[336913027,1725241656085,-500.0,0.00024931,2]
[336913028,1725241656108,-1741.64,0.00024931,2]
[336913029,1725241656130,-500.0,0.00024931,2]
[336913030,1725241656151,-587.93896572,0.00024931,2]
[336913031,1725241656175,-2301.67,0.00024931,2]
[336913032,1725241656197,-500.0,0.00024931,2]
[336913033,1725241656218,-500.0,0.00024931,2]
[336913034,1725241656239,-500.0,0.00024931,2]
[336913035,1725241656261,-576.53522314,0.00024931,2]
[336913036,1725241656283,-500.0,0.00024931,2]
[336913037,1725241656316,-500.0,0.00024931,2]
[336913038,1725241656339,-500.0,0.00024931,2]
[336913039,1725241656482,-500.0,0.00024931,2]
[336913040,1725241656503,-500.0,0.00024931,2]
[336913041,1725241656524,-500.0,0.00024931,2]
[336913042,1725241656550,-500.0,0.00024931,2]
[336913043,1725241656573,-3514.58,0.00024931,2]
[336913044,1725241656594,-503.84956103,0.00024931,2]
[336913045,1725241656616,-588.96,0.00024931,2]
[336913046,1725241656637,-500.0,0.00024931,2]
[336913047,1725241656659,-1047.77,0.00024931,2]
[336913048,1725241656686,-500.0,0.00024931,2]
[336913049,1725241656710,-1893.07,0.00024931,2]
[336913050,1725241656734,-500.0,0.00024931,2]
[336913051,1725241656755,-504.90320208,0.00024931,2]
[336913052,1725241656778,-1379.41,0.00024931,2]
[336913053,1725241656804,-500.80315554,0.00024931,2]
[336913054,1725241656825,-500.92211181,0.00024931,2]
[336913055,1725241656848,-503.42893334,0.00024931,2]
[336913056,1725241656869,-500.0,0.00024931,2]
[336913057,1725241656890,-501.4725665,0.00024931,2]
[336913058,1725241656911,-504.27559843,0.00024931,2]
[336913059,1725241656933,-500.0,0.00024931,2]
[336913060,1725241656954,-1408.08,0.00024931,2]
[336913061,1725241656976,-570.669813,0.00024931,7]
[336913062,1725241656997,-696.2,0.00024931,2]
[336913063,1725241657018,-500.0,0.00024931,2]
[336913064,1725241657039,-500.0,0.00024931,2]
[336913065,1725241657067,-809.88,0.00024931,2]
[336913066,1725241657088,-570.669813,0.00024931,7]
[336913067,1725241657108,-500.0,0.00024931,2]
[336913068,1725241657129,-506.75477041,0.00024931,2]
[336913069,1725241657150,-851.06,0.00024931,2]
[336913070,1725241657171,-2172.66,0.00024931,2]
[336913071,1725241657193,-500.0,0.00024931,2]
[336913072,1725241657213,-555.44,0.00024931,2]
[336913073,1725241657234,-500.0,0.00024931,2]
[336913074,1725241657255,-500.0,0.00024931,2]
[336913075,1725241657275,-500.0,0.00024931,2]
[336913076,1725241657298,-1492.96,0.00024931,2]
[336913077,1725241657318,-500.0,0.00024931,2]
[336913078,1725241657340,-1751.19,0.00024931,2]
[336913079,1725241657361,-503.0890546,0.00024931,2]
[336913080,1725241657382,-500.0,0.00024931,2]
[336913081,1725241657402,-500.0,0.00024931,2]
[336913082,1725241657424,-1336.24,0.00024931,2]
[336913083,1725241657445,-500.0,0.00024931,2]
[336913084,1725241657467,-381.55556487,0.00024931,2]
[336913085,1725241657487,-898.37,0.00024931,2]
[336913086,1725241657508,-502.23152591,0.00024931,2]
[336913087,1725241657530,-500.0,0.00024931,2]
[336913088,1725241657552,-500.0,0.00024931,2]
[336913089,1725241657572,-2340.67,0.00024931,2]
[336913090,1725241657592,-500.0,0.00024931,2]
[336913091,1725241657611,-500.0,0.00024931,2]
[336913092,1725241657632,-500.0,0.00024931,2]
[336913093,1725241657652,-630.16,0.00024931,2]
[336913094,1725241657673,-598.55,0.00024931,2]
[336913095,1725241657697,-500.0,0.00024931,2]
[336913096,1725241657718,-500.0,0.00024931,2]
[336913097,1725241657739,-503.87241567,0.00024931,2]
[336913098,1725241657759,-504.23389726,0.00024931,2]
[336913099,1725241657784,-500.0,0.00024931,2]
[336913100,1725241657810,-1582.1,0.00024931,2]
[336913101,1725241657832,-500.0,0.00024931,2]
[336913102,1725241657853,-500.0,0.00024931,2]
[336913103,1725241657873,-500.0,0.00024931,2]
[336913104,1725241657895,-500.0,0.00024931,2]
[336913105,1725241657915,-1293.18,0.00024931,2]
[336913106,1725241657937,-503.83564198,0.00024931,2]
[336913107,1725241657958,-500.0,0.00024931,2]
[336913108,1725241657979,-500.0,0.00024931,2]
[336913109,1725241658000,-500.0,0.00024931,2]
[336913110,1725241658021,-608.15,0.00024931,2]
[336913111,1725241658046,-3476.66,0.00024931,2]
[336913112,1725241658067,-500.0,0.00024931,2]
[336913113,1725241658087,-500.0,0.00024931,2]
[336913114,1725241658107,-1516.91,0.00024931,2]
[336913115,1725241658128,-1634.96,0.00024931,2]
[336913116,1725241658154,-500.0,0.00024931,2]
[336913117,1725241658176,-433.41,0.00024931,2]
[336913118,1725241658195,-529.17,0.00024931,2]
[336913119,1725241658216,-500.0,0.00024931,2]
[336913120,1725241658238,-1875.06,0.00024931,2]
[336913121,1725241658258,-500.0,0.00024931,2]
[336913122,1725241658279,-500.0,0.00024931,2]
[336913123,1725241658301,-502.64073534,0.00024931,2]
[336913124,1725241658321,-500.0,0.00024931,2]
[336913125,1725241658341,-500.0,0.00024931,2]
[336913126,1725241658362,-500.0,0.00024931,2]
[336913127,1725241658383,-212.0,0.00024932,2]
[336913128,1725241658404,-153.1137214,0.00024932,2]
[336913129,1725241658426,-500.47895839,0.00024973,2]
[336913130,1725241658447,-500.0,0.00024973,2]
[336913131,1725241658467,-600.0,0.00024986,2]
[336913132,1725241658488,-2030.64048,0.00025,5]
[336913133,1725241658510,-150.112233,0.00025,5]
[336913134,1725241658534,-150.112233,0.00025,4]
[336913135,1725241658556,-212.0,0.00025,2]
[336913136,1725241658577,-153.0,0.00025,2]
[336913137,1725241658598,-150.112233,0.000251,6]
[336913138,1725241658621,-150.112233,0.000251,6]
[336913139,1725241658768,-150.112233,0.000251,7]
[336913140,1725241658795,-153.0,0.00025144,2]
[336913141,1725241658815,-154.9606283,0.00025144,2]
[336913142,1725241658837,-153.0,0.00025144,2]
[336913143,1725241658857,-153.0,0.00025144,2]
[336913144,1725241658881,-2916.47,0.00025194,2]
[336913145,1725241658906,-1783.65771735,0.00025195,3]
[336913146,1725241658927,-155.91627,0.00025195,7]
[336913147,1725241658949,-155.91627,0.00025195,7]
[336913148,1725241658971,-151.0,0.00025196,2]
[336913149,1725241658991,-150.112233,0.000252,7]
[336913150,1725241659012,-151.0,0.000252,7]
[336913151,1725241659032,-150.112233,0.000252,10]
[336913152,1725241659053,-150.112233,0.000252,9]
[336913153,1725241659073,-3000.0,0.000252,2]
[336913154,1725241659095,-2916.47,0.00025204,2]
[336913155,1725241659117,-2916.47,0.00025204,2]
[336913156,1725241659139,-2916.47,0.00025204,2]
[336913157,1725241659161,-2916.47,0.00025204,2]
[336913158,1725241659184,-2916.47,0.00025204,2]
[336913159,1725241659209,-2916.59757563,0.00025204,2]
[336913160,1725241659231,-179.799395,0.00025205,7]
[336913161,1725241659251,-155.91627,0.00025205,7]
[336913162,1725241659273,-155.91627,0.00025205,7]
[336913163,1725241659301,-500.0,0.00025205,2]
[336913164,1725241659321,-500.0,0.00025205,2]
[336913165,1725241659341,-500.0,0.00025205,2]
[336913166,1725241659361,-513.5287699,0.00025205,2]
[336913167,1725241659382,-500.0,0.00025205,2]
[336913168,1725241659402,-500.0,0.00025205,2]
[336913169,1725241659422,-500.0,0.00025205,2]
[336913170,1725241659443,-500.0,0.00025205,2]
[336913171,1725241659464,-500.0,0.00025205,2]
[336913172,1725241659485,-500.0,0.00025205,2]
[336913173,1725241659506,-500.0,0.00025205,2]
[336913174,1725241659526,-500.0,0.00025205,2]
[336913175,1725241659559,-500.0,0.00025205,2]
[336913176,1725241659580,-500.0,0.00025205,2]
[336913177,1725241659601,-500.0,0.00025205,2]
[336913178,1725241659621,-500.0,0.00025205,2]
[336913179,1725241659641,-530.77,0.00025205,2]
[336913180,1725241659661,-500.0,0.00025205,2]
[336913181,1725241659681,-500.0,0.00025205,2]
[336913182,1725241659704,-500.0,0.00025205,2]
[336913183,1725241659724,-500.0,0.00025205,2]
[336913184,1725241659748,-806.73,0.00025205,2]
[336913185,1725241659770,-500.0,0.00025205,2]
[336913186,1725241659790,-772.81,0.00025205,2]
[336913187,1725241659811,-500.0,0.00025205,2]
[336913188,1725241659832,-500.0,0.00025205,2]
[336913189,1725241659852,-500.0,0.00025205,2]
[336913190,1725241659873,-505.96904606,0.00025205,2]
[336913191,1725241659895,-502.83740128,0.00025205,2]
[336913192,1725241659917,-815.72,0.00025205,2]
[336913193,1725241659936,-504.96188736,0.00025205,2]
[336913194,1725241659957,-500.0,0.00025205,2]
[336913195,1725241659978,-501.5993093,0.00025205,2]
[336913196,1725241660000,-500.0,0.00025205,2]
[336913197,1725241660022,-500.0,0.00025205,2]
[336913198,1725241660046,-500.0,0.00025205,2]
[336913199,1725241660069,-500.0,0.00025205,2]
[336913200,1725241660090,-589.49,0.00025205,2]
[336913201,1725241660111,-500.0,0.00025205,2]
[336913202,1725241660132,-500.0,0.00025205,2]
[336913203,1725241660154,-500.0,0.00025205,2]
[336913204,1725241660176,-504.37014975,0.00025205,2]
[336913205,1725241660197,-500.0,0.00025205,2]
[336913206,1725241660220,-874.16,0.00025205,2]
[336913207,1725241660242,-882.48,0.00025205,2]
[336913208,1725241660263,-504.48503058,0.00025205,2]
[336913209,1725241660285,-500.0,0.00025205,2]
[336913210,1725241660312,-500.0,0.00025205,2]
[336913211,1725241660334,-500.0,0.00025205,2]
[336913212,1725241660356,-500.0,0.00025205,2]
[336913213,1725241660376,-500.0,0.00025205,2]
[336913214,1725241660396,-151.0,0.00025205,7]
[336913215,1725241660416,-524.61987898,0.00025205,2]
[336913216,1725241660438,-530.59,0.00025205,2]
[336913217,1725241660459,-500.0,0.00025205,2]
[336913218,1725241660479,-500.0,0.00025205,2]
[336913219,1725241660501,-1101.58,0.00025205,2]
[336913220,1725241660522,-503.02916148,0.00025205,2]
[336913221,1725241660543,-733.14,0.00025205,2]
[336913222,1725241660566,-500.0,0.00025205,2]
[336913223,1725241660586,-500.0,0.00025205,2]
[336913224,1725241660607,-500.0,0.00025205,2]
[336913225,1725241660630,-1767.76,0.00025205,2]
[336913226,1725241660651,-151.0,0.00025205,7]
[336913227,1725241660673,-500.0,0.00025205,2]
[336913228,1725241660695,-858.09,0.00025205,2]
[336913229,1725241660720,-500.0,0.00025205,2]
[336913230,1725241660740,-692.14,0.00025205,2]
[336913231,1725241660761,-500.0,0.00025205,2]
[336913232,1725241660786,-500.0,0.00025205,2]
[336913233,1725241660808,-541.11,0.00025205,2]
[336913234,1725241660830,-500.0,0.00025205,2]
[336913235,1725241660851,-1055.41,0.00025205,2]
[336913236,1725241660983,-500.0,0.00025205,2]
[336913237,1725241661005,-500.0,0.00025205,2]
[336913238,1725241661026,-500.0,0.00025205,2]
[336913239,1725241661049,-504.89092668,0.00025205,2]
[336913240,1725241661069,-500.0,0.00025205,2]
[336913241,1725241661090,-500.0,0.00025205,2]
[336913242,1725241661112,-163.944907,0.00025205,7]
[336913243,1725241661132,-500.0,0.00025205,2]
[336913244,1725241661153,-500.0,0.00025205,2]
[336913245,1725241661175,-1353.53,0.00025205,2]
[336913246,1725241661197,-1604.29,0.00025205,2]
[336913247,1725241661217,-500.0,0.00025205,2]
[336913248,1725241661238,-690.61,0.00025205,2]
[336913249,1725241661260,-500.0,0.00025205,2]
[336913250,1725241661281,-500.0,0.00025205,2]
[336913251,1725241661304,-695.97,0.00025205,2]
[336913252,1725241661324,-276.97885822,0.00025205,2]
[336913253,1725241661345,-500.0,0.00025205,2]
[336913254,1725241661365,-500.0,0.00025205,2]
[336913255,1725241661385,-500.0,0.00025205,2]
[336913256,1725241661405,-500.0,0.00025205,2]
[336913257,1725241661426,-500.0,0.00025205,2]
[336913258,1725241661446,-502.51603339,0.00025205,2]
[336913259,1725241661467,-500.0,0.00025205,2]
[336913260,1725241661488,-500.0,0.00025205,2]
[336913261,1725241661509,-500.0,0.00025205,2]
[336913262,1725241661531,-500.0,0.00025205,2]
[336913263,1725241661554,-272.925385,0.00025205,2]
[336913264,1725241661575,-500.0,0.00025205,2]
[336913265,1725241661597,-2537.34,0.00025205,2]
[336913266,1725241661618,-1542.69,0.00025205,2]
[336913267,1725241661639,-500.0,0.00025205,2]
[336913268,1725241661659,-591.29,0.00025205,2]
[336913269,1725241661680,-519.39,0.00025205,2]
[336913270,1725241661705,-500.0,0.00025205,2]
[336913271,1725241661726,-500.0,0.00025205,2]
[336913272,1725241661748,-500.0,0.00025205,2]
[336913273,1725241661771,-500.0,0.00025205,2]
[336913274,1725241661792,-638.71,0.00025205,2]
[336913275,1725241661814,-500.0,0.00025205,2]
[336913276,1725241661836,-500.0,0.00025205,2]
[336913277,1725241661858,-550.16,0.00025205,2]
[336913278,1725241661879,-557.59,0.00025205,2]
[336913279,1725241661903,-500.0,0.00025205,2]
[336913280,1725241661923,-509.5639713,0.00025205,2]
[336913281,1725241661946,-1267.49,0.00025205,2]
[336913282,1725241661967,-500.0,0.00025205,2]
[336913283,1725241661988,-500.0,0.00025205,2]
[336913284,1725241662011,-500.0,0.00025205,2]
[336913285,1725241662033,-500.0,0.00025205,4]
[336913286,1725241662054,-500.0,0.00025205,2]
[336913287,1725241662075,-500.0,0.00025205,2]
[336913288,1725241662097,-425.90370936,0.00025205,2]
[336913289,1725241662117,-500.0,0.00025205,2]
[336913290,1725241662137,-500.0,0.00025205,2]
[336913291,1725241662158,-2480.27,0.00025205,2]
[336913292,1725241662179,-151.0,0.00025205,7]
[336913293,1725241662200,-151.0,0.00025205,7]
[336913294,1725241662220,-500.0,0.00025205,2]
[336913295,1725241662242,-151.0,0.00025205,7]
[336913296,1725241662263,-151.0,0.00025205,7]
[336913297,1725241662283,-289.2744339,0.00025205,2]
[336913298,1725241662304,-500.0,0.00025205,2]
[336913299,1725241662325,-737.35,0.00025205,2]
[336913300,1725241662348,-267.82937031,0.00025205,2]
[336913301,1725241662370,-500.0,0.00025205,2]
[336913302,1725241662391,-500.0,0.00025205,2]
[336913303,1725241662411,-500.0,0.00025205,2]
[336913304,1725241662433,-1679.13,0.00025205,2]
[336913305,1725241662454,-500.0,0.00025205,2]
[336913306,1725241662475,-500.0,0.00025205,2]
[336913307,1725241662496,-1026.49,0.00025205,2]
[336913308,1725241662517,-500.0,0.00025205,2]
[336913309,1725241662538,-510.04603623,0.00025205,2]
[336913310,1725241662560,-500.0,0.00025205,2]
[336913311,1725241662581,-500.0,0.00025205,2]
[336913312,1725241662602,-500.0,0.00025205,2]
[336913313,1725241662623,-500.0,0.00025205,2]
[336913314,1725241662643,-1056.18,0.00025205,2]
[336913315,1725241662664,-588.42,0.00025205,2]
[336913316,1725241662685,-500.0,0.00025205,2]
[336913317,1725241662708,-500.0,0.00025205,2]
[336913318,1725241662729,-1495.45,0.00025205,2]
[336913319,1725241662752,-509.62050051,0.00025205,2]
[336913320,1725241662773,-1096.0,0.00025205,2]
[336913321,1725241662798,-500.0,0.00025205,2]
[336913322,1725241662829,-500.0,0.00025205,2]
[336913323,1725241662851,-500.0,0.00025205,2]
[336913324,1725241662877,-814.05,0.00025205,2]
[336913325,1725241662898,-500.0,0.00025205,2]
[336913326,1725241662919,-524.2262045,0.00025205,2]
[336913327,1725241662940,-853.48,0.00025205,2]
[336913328,1725241663068,-1261.97,0.00025205,2]
[336913329,1725241663094,-504.31110377,0.00025205,2]
[336913330,1725241663115,-504.4654921,0.00025205,2]
[336913331,1725241663137,-500.0,0.00025205,2]
[336913332,1725241663157,-1312.91,0.00025205,2]
[336913333,1725241663178,-500.0,0.00025205,2]
[336913334,1725241663199,-1049.4,0.00025205,2]
[336913335,1725241663225,-751.59,0.00025205,2]
[336913336,1725241663246,-619.37350657,0.00025205,2]
[336913337,1725241663267,-888.46,0.00025205,2]
[336913338,1725241663289,-956.79,0.00025205,2]
[336913339,1725241663323,-500.0,0.00025205,2]
[336913340,1725241663345,-500.0,0.00025205,2]
[336913341,1725241663365,-500.0,0.00025205,2]
[336913342,1725241663390,-567.63,0.00025205,2]
[336913343,1725241663411,-500.0,0.00025205,2]
[336913344,1725241663434,-509.11715738,0.00025205,2]
[336913345,1725241663456,-500.0,0.00025205,2]
[336913346,1725241663478,-500.0,0.00025205,2]
[336913347,1725241663499,-500.0,0.00025205,2]
[336913348,1725241663520,-500.0,0.00025205,2]
[336913349,1725241663542,-500.0,0.00025205,2]
[336913350,1725241663570,-500.0,0.00025205,2]
[336913351,1725241663590,-522.57,0.00025205,2]
[336913352,1725241663613,-2394.69,0.00025205,2]
[336913353,1725241663634,-500.0,0.00025205,2]
[336913354,1725241663655,-500.0,0.00025205,2]
[336913355,1725241663677,-500.0,0.00025205,2]
[336913356,1725241663704,-503.15804222,0.00025205,2]
[336913357,1725241663725,-504.76397959,0.00025205,2]
[336913358,1725241663749,-500.0,0.00025205,2]
[336913359,1725241663771,-2460.78,0.00025205,2]
[336913360,1725241663797,-612.1,0.00025205,2]
[336913361,1725241663818,-500.0,0.00025205,2]
[336913362,1725241663838,-4058.39,0.00025205,2]
[336913363,1725241663859,-801.05,0.00025205,2]
[336913364,1725241663881,-722.61,0.00025205,2]
[336913365,1725241663903,-1346.27,0.00025205,2]
[336913366,1725241663924,-500.0,0.00025205,2]
[336913367,1725241663944,-500.0,0.00025205,2]
[336913368,1725241663966,-734.36,0.00025205,2]
[336913369,1725241663986,-508.50326566,0.00025205,2]
[336913370,1725241664007,-500.0,0.00025205,2]
[336913371,1725241664028,-502.97284729,0.00025205,2]
[336913372,1725241664051,-500.0,0.00025205,2]
[336913373,1725241664086,-1566.24,0.00025205,2]
[336913374,1725241664121,-500.0,0.00025205,2]
[336913375,1725241664160,-1661.52,0.00025205,2]
[336913376,1725241664199,-500.0,0.00025205,2]
[336913377,1725241664235,-500.0,0.00025205,2]
[336913378,1725241664268,-500.0,0.00025205,2]
[336913379,1725241664304,-500.0,0.00025205,2]
[336913380,1725241664342,-500.0,0.00025205,2]
[336913381,1725241664372,-503.33503037,0.00025205,2]
[336913382,1725241664409,-500.0,0.00025205,2]
[336913383,1725241664445,-1803.31,0.00025205,2]
[336913384,1725241664476,-1052.06,0.00025205,2]
[336913385,1725241664507,-500.0,0.00025205,2]
[336913386,1725241664539,-1192.31,0.00025205,2]
[336913387,1725241664573,-1687.77,0.00025205,2]
[336913388,1725241664604,-500.0,0.00025205,2]
[336913389,1725241664635,-500.0,0.00025205,2]
[336913390,1725241664667,-500.0,0.00025205,2]
[336913391,1725241664697,-529.01758195,0.00025205,2]
[336913392,1725241664730,-1316.0,0.00025205,2]
[336913393,1725241664759,-500.0,0.00025205,2]
[336913394,1725241664789,-500.0,0.00025205,2]
[336913395,1725241664820,-500.0,0.00025205,2]
[336913396,1725241664850,-1897.0,0.00025205,2]
[336913397,1725241664884,-856.42,0.00025205,2]
[336913398,1725241664913,-1190.97,0.00025205,2]
[336913399,1725241664944,-500.0,0.00025205,2]
[336913400,1725241664973,-500.0,0.00025205,2]
[336913401,1725241665003,-2693.66,0.00025205,2]
[336913402,1725241665033,-663.31,0.00025205,2]
[336913403,1725241665064,-688.93,0.00025205,2]
[336913404,1725241665095,-666.35,0.00025205,2]
[336913405,1725241665128,-500.0,0.00025205,2]
[336913406,1725241665162,-873.75,0.00025205,2]
[336913407,1725241665188,-506.55797406,0.00025205,2]
[336913408,1725241665210,-693.58,0.00025205,2]
[336913409,1725241665233,-529.52400945,0.00025205,2]
[336913410,1725241665255,-500.0,0.00025205,2]
[336913411,1725241665278,-5488.79,0.00025205,2]
[336913412,1725241665301,-771.43,0.00025205,2]
[336913413,1725241665322,-719.13,0.00025205,2]
[336913414,1725241665344,-613.65,0.00025205,2]
[336913415,1725241665366,-775.24,0.00025205,2]
[336913416,1725241665387,-500.0,0.00025205,2]
[336913417,1725241665702,-500.0,0.00025205,2]
[336913418,1725241665748,-1771.12,0.00025205,2]
[336913419,1725241665772,-8793.93,0.00025205,2]
[336913420,1725241665793,-554.23,0.00025205,2]
[336913421,1725241665815,-1144.92,0.00025205,2]
[336913422,1725241665835,-500.0,0.00025205,2]
[336913423,1725241665856,-1413.39,0.00025205,2]
[336913424,1725241665877,-500.0,0.00025205,2]
[336913425,1725241665898,-500.0,0.00025205,2]
[336913426,1725241665919,-1741.64,0.00025205,2]
[336913427,1725241665939,-500.0,0.00025205,2]
[336913428,1725241665961,-2301.67,0.00025205,2]
[336913429,1725241665982,-500.0,0.00025205,2]
[336913430,1725241666004,-503.10344742,0.00025205,2]
[336913431,1725241666031,-635.92969724,0.00025205,2]
[336913432,1725241666060,-500.0,0.00025205,2]
[336913433,1725241666083,-500.0,0.00025205,2]
[336913434,1725241666106,-500.0,0.00025205,2]
[336913435,1725241666129,-500.0,0.00025205,2]
[336913436,1725241666150,-500.0,0.00025205,2]
[336913437,1725241666173,-500.0,0.00025205,2]
[336913438,1725241666201,-3514.58,0.00025205,2]
[336913439,1725241666223,-588.96,0.00025205,2]
[336913440,1725241666247,-500.0,0.00025205,2]
[336913441,1725241666271,-1047.77,0.00025205,2]
[336913442,1725241666294,-500.0,0.00025205,2]
[336913443,1725241666329,-1893.07,0.00025205,2]
[336913444,1725241666352,-500.0,0.00025205,2]
[336913445,1725241666374,-1379.41,0.00025205,2]
[336913446,1725241666399,-500.0,0.00025205,2]
[336913447,1725241666421,-500.0,0.00025205,2]
[336913448,1725241666443,-1408.08,0.00025205,2]
[336913449,1725241666465,-570.669813,0.00025205,7]
[336913450,1725241666487,-696.2,0.00025205,2]
[336913451,1725241666508,-500.0,0.00025205,2]
[336913452,1725241666532,-511.52084434,0.00025205,2]
[336913453,1725241666563,-809.88,0.00025205,2]
[336913454,1725241666585,-570.669813,0.00025205,7]
[336913455,1725241666607,-500.0,0.00025205,2]
[336913456,1725241666630,-851.06,0.00025205,2]
[336913457,1725241666652,-2172.66,0.00025205,2]
[336913458,1725241666674,-500.0,0.00025205,2]
[336913459,1725241666697,-555.44,0.00025205,2]
[336913460,1725241666723,-500.0,0.00025205,2]
[336913461,1725241666744,-500.0,0.00025205,2]
[336913462,1725241666767,-505.1008714,0.00025205,2]
[336913463,1725241666797,-1492.96,0.00025205,2]
[336913464,1725241666820,-500.0,0.00025205,2]
[336913465,1725241666843,-1751.19,0.00025205,2]
[336913466,1725241666866,-500.0,0.00025205,2]
[336913467,1725241666890,-500.0,0.00025205,2]
[336913468,1725241666912,-1336.24,0.00025205,2]
[336913469,1725241666936,-500.0,0.00025205,2]
[336913470,1725241666962,-898.37,0.00025205,2]
[336913471,1725241666984,-500.0,0.00025205,2]
[336913472,1725241667007,-500.0,0.00025205,2]
[336913473,1725241667029,-2340.67,0.00025205,2]
[336913474,1725241667055,-500.0,0.00025205,2]
[336913475,1725241667077,-500.0,0.00025205,2]
[336913476,1725241667100,-500.0,0.00025205,2]
[336913477,1725241667122,-598.55,0.00025205,2]
[336913478,1725241667145,-630.16,0.00025205,2]
[336913479,1725241667167,-500.0,0.00025205,2]
[336913480,1725241667190,-500.0,0.00025205,2]
[336913481,1725241667212,-500.0,0.00025205,2]
[336913482,1725241667235,-1582.1,0.00025205,2]
[336913483,1725241667258,-503.64634662,0.00025205,2]
[336913484,1725241667281,-500.0,0.00025205,2]
[336913485,1725241667307,-500.0,0.00025205,2]
[336913486,1725241667330,-500.0,0.00025205,2]
[336913487,1725241667354,-1293.18,0.00025205,2]
[336913488,1725241667375,-500.0,0.00025205,2]
[336913489,1725241667398,-500.0,0.00025205,2]
[336913490,1725241667420,-500.0,0.00025205,2]
[336913491,1725241667444,-608.15,0.00025205,2]
[336913492,1725241667468,-3476.66,0.00025205,2]
[336913493,1725241667490,-500.0,0.00025205,2]
[336913494,1725241667511,-643.48374223,0.00025205,2]
[336913495,1725241667533,-1516.91,0.00025205,2]
[336913496,1725241667556,-1634.96,0.00025205,2]
[336913497,1725241667578,-504.5,0.00025205,2]
[336913498,1725241667600,-500.0,0.00025205,2]
[336913499,1725241667623,-1875.06,0.00025205,2]
[336913500,1725241667646,-500.0,0.00025205,2]
[336913501,1725241667668,-500.0,0.00025205,2]
[336913502,1725241667691,-500.0,0.00025205,2]
[336913503,1725241667714,-3000.0,0.0002521,2]
[336913504,1725241667738,-570.669813,0.0002521,7]
[336913505,1725241667761,-570.669813,0.0002521,7]
[336913506,1725241667785,-3000.0,0.0002522,2]
[336913507,1725241667807,-1000.0,0.00025221,2]
[336913508,1725241667842,-155.91627,0.0002523,7]